Workbook

Sheet TJN-2 p 1 Summary
A1: CASCADE NATURAL GAS CORPORATION
A2: PROPOSED UTILITY CAPITAL STRUCTURE
I6: Required
C7: Balance | E7: Ratio | G7: Cost | I7: Return
A9: Based on Normalized 2024
A10: Long-Term Debt 4/ | C10: ='TJN-2 p 2 Avg and Proj'!C31 -> 475000000 | E10: ='TJN-2 p 2 Avg and Proj'!E31 -> 0.44214 | G10: ='TJN-2 p 2 Avg and Proj'!G31 -> 0.04915579739 | I10: =ROUND(+G10*E10,5) -> 0.02173
A11: Short-Term Debt 2/ | C11: ='TJN-2 p 2 Avg and Proj'!C32 -> 59102250 | E11: ='TJN-2 p 2 Avg and Proj'!E32 -> 0.05501 | G11: ='TJN-2 p 2 Avg and Proj'!G32 -> 0.08014 | I11: =ROUND(+G11*E11,5) -> 0.00441
A12: Common Equity 3/ | C12: ='TJN-2 p 2 Avg and Proj'!C33 -> 540218000 | E12: ='TJN-2 p 2 Avg and Proj'!E33 -> 0.50285 | G12: ='TJN-2 p 2 Avg and Proj'!G33 -> 0.105 | I12: =ROUND(+G12*E12,5) -> 0.0528
A13: Total | C13: =SUM(C10:C12) -> 1074320250 | E13: =SUM(E10:E12) -> 1 | I13: =SUM(I10:I12) -> 0.07894
A21: 2/ Exhibit TJN-2, page 6.
A22: 3/ Exhibit TJN-2, page 7.
A23: 4/ Exhibit TJN-2, page 4.

Sheet TJN-2 p 2 Avg and Proj
A1: CASCADE NATURAL GAS CORPORATION
A2: AVERAGE AND PROJECTED UTILITY CAPITAL STRUCTURE
A3: TWELVE MONTHS ENDING DECEMBER 31, 2023
A4: PROJECTED 2024 - 2025
I7: Required
C8: Balance | E8: Ratio | G8: Cost | I8: Return
A9: Per Books 2023
A10: Long-Term Debt 1/ | C10: ='TJN-2 p 3 LTD 23'!G30 -> 475000000 | E10: =ROUND(+C10/$C$13,5) -> 0.43264 | G10: ='TJN-2 p 3 LTD 23'!K30 -> 0.04906518101 | I10: =ROUND(+G10*E10,5) -> 0.02123
A11: Short-Term Debt 2/ | C11: ='TJN-2 p 6 STD'!C12 -> 145875000 | E11: =ROUND(+C11/$C$13,5) -> 0.13287 | G11: ='TJN-2 p 6 STD'!G12 -> 0.07169 | I11: =ROUND(+G11*E11,5) -> 0.00953
A12: Common Equity 3/ | C12: ='TJN-2 p 7 Common Equity'!C8 -> 477031415.5 | E12: =ROUND(+C12/$C$13,5) -> 0.43449 | G12: 0.105 | I12: =ROUND(+G12*E12,5) -> 0.04562
A13: Total | C13: =SUM(C10:C12) -> 1097906416 | E13: =SUM(E10:E12) -> 1 | I13: =SUM(I10:I12) -> 0.07638
A16: Normalized 2023
A17: Long-Term Debt 1/ | C17: =C10 -> 475000000 | E17: =ROUND(+C17/$C$13,5) -> 0.43264 | G17: =G10 -> 0.04906518101 | I17: =ROUND(+G17*E17,5) -> 0.02123
A18: Short-Term Debt 2/ | C18: =C11-(153113241.28*0.5) -> 69318379.36 | E18: =ROUND(+C18/$C$13,5) -> 0.06314 | G18: =G11 -> 0.07169 | I18: =ROUND(+G18*E18,5) -> 0.00453
A19: Common Equity 3/ | C19: =C12+(153113241.28*0.5) -> 553588036.1 | E19: =ROUND(+C19/$C$13,5) -> 0.50422 | G19: 0.105 | I19: =ROUND(+G19*E19,5) -> 0.05294
A20: Total | C20: =SUM(C17:C19) -> 1097906416 | E20: =SUM(E17:E19) -> 1 | I20: =SUM(I17:I19) -> 0.0787
A23: Projected 2024
A24: Long-Term Debt 4/ | C24: ='TJN-2 p 4 LTD 24'!G30 -> 475000000 | E24: =ROUND(+C24/$C$27,5) -> 0.44214 | G24: ='TJN-2 p 4 LTD 24'!K30 -> 0.04915579739 | I24: =ROUND(+G24*E24,5) -> 0.02173
A25: Short-Term Debt 2/ | C25: ='TJN-2 p 6 STD'!C17 -> 96332250 | E25: =ROUND(+C25/$C$27,5) -> 0.08967 | G25: ='TJN-2 p 6 STD'!G17 -> 0.08014 | I25: =ROUND(+G25*E25,5) -> 0.00719
A26: Common Equity 3/ | C26: ='TJN-2 p 7 Common Equity'!C14 -> 502988000 | E26: =ROUND(+C26/$C$27,5) -> 0.46819 | G26: =G12 -> 0.105 | I26: =ROUND(+G26*E26,5) -> 0.04916
A27: Total | C27: =SUM(C24:C26) -> 1074320250 | E27: =SUM(E24:E26) -> 1 | I27: =SUM(I24:I26) -> 0.07808
A30: Normalized 2024
A31: Long-Term Debt 4/ | C31: =C24 -> 475000000 | E31: =ROUND(+C31/$C$27,5) -> 0.44214 | G31: =G24 -> 0.04915579739 | I31: =ROUND(+G31*E31,5) -> 0.02173
A32: Short-Term Debt 2/ | C32: =C25-(74460000*0.5) -> 59102250 | E32: =ROUND(+C32/$C$27,5) -> 0.05501 | G32: =G25 -> 0.08014 | I32: =ROUND(+G32*E32,5) -> 0.00441
A33: Common Equity 3/ | C33: =C26+(74460000*0.5) -> 540218000 | E33: =ROUND(+C33/$C$27,5) -> 0.50285 | G33: =G26 -> 0.105 | I33: =ROUND(+G33*E33,5) -> 0.0528
A34: Total | C34: =SUM(C31:C33) -> 1074320250 | E34: =SUM(E31:E33) -> 1 | I34: =SUM(I31:I33) -> 0.07894
A37: Projected 2025
A38: Long-Term Debt 5/ | C38: ='TJN-2 p 5 LTD 25'!G29 -> 450000000 | E38: =ROUND(+C38/$C$41,5) -> 0.45531 | G38: ='TJN-2 p 5 LTD 25'!K29 -> 0.04960334169 | I38: =ROUND(+G38*E38,5) -> 0.02258
A39: Short-Term Debt 2/ | C39: ='TJN-2 p 6 STD'!C22 -> 17268916.67 | E39: =ROUND(+C39/$C$41,5) -> 0.01747 | G39: ='TJN-2 p 6 STD'!G22 -> 0.0746 | I39: =ROUND(+G39*E39,5) -> 0.0013
A40: Common Equity 3/ | C40: ='TJN-2 p 7 Common Equity'!C16 -> 521065000 | E40: =ROUND(+C40/$C$41,5) -> 0.52722 | G40: =G12 -> 0.105 | I40: =ROUND(+G40*E40,5) -> 0.05536
A41: Total | C41: =SUM(C38:C40) -> 988333916.7 | E41: =SUM(E38:E40) -> 1 | I41: =SUM(I38:I40) -> 0.07924
A46: 1/ Exhibit TJN-2, page 3.
A47: 2/ Exhibit TJN-2, page 6.
A48: 3/ Exhibit TJN-2, page 7.
A49: 4/ Exhibit TJN-2, page 4.
A50: 5/ Exhibit TJN-2, page 5.

Sheet TJN-2 p 3 LTD 23
A1: CASCADE NATURAL GAS CORPORATION
A2: LONG-TERM DEBT CAPITAL
A3: DECEMBER 31, 2023
G7: Principal
C8: Date of | E8: Interest | G8: Amount | I8: Annual Interest
A9: Description | C9: Maturity | E9: Rate | G9: of Issue | I9: Expense
A10: Unsecured Long-Term Debt
A11: 7.48% - Medium-Term Note | C11: 2027-09-15 | E11: 0.0748 | G11: 20000000 | I11: =E11*G11 -> 1496000
A12: 7.10% - Medium-Term Note | C12: 2029-03-16 | E12: 0.071 | G12: 15000000 | I12: =E12*G12 -> 1065000
A13: 5.79% - Medium-Term Note | C13: 1937-03-08 | E13: 0.0579 | G13: 40000000 | I13: =E13*G13 -> 2316000
A14: 4.11% - Senior Note | C14: 2025-08-23 | E14: 0.0411 | G14: 25000000 | I14: 1027500
A15: 4.36% - Senior Note | C15: 2028-08-23 | E15: 0.0436 | G15: 25000000 | I15: 1090000
A16: 4.09% - Senior Note | C16: 1944-11-24 | E16: 0.0409 | G16: 12500000 | I16: 511250
A17: 4.24% - Senior Note | C17: 1954-11-24 | E17: 0.0424 | G17: 12500000 | I17: =E17*G17 -> 530000
A18: 4.09% - Senior Note | C18: 1945-01-15 | E18: 0.0409 | G18: 12500000 | I18: 511250
A19: 4.24% - Senior Note | C19: 1955-01-15 | E19: 0.0424 | G19: 12500000 | I19: =E19*G19 -> 530000
A20: 3.62% - Senior Note | C20: 2029-06-13 | E20: 0.0362 | G20: 25000000 | I20: 905000
A21: 3.82% - Senior Note | C21: 1934-06-13 | E21: 0.0382 | G21: 20000000 | I21: 764000
A22: 4.26% - Senior Note | C22: 1949-06-13 | E22: 0.0426 | G22: 30000000 | I22: =E22*G22 -> 1278000
A23: 3.58% - Senior Note | C23: 1950-06-15 | E23: 0.0358 | G23: 30000000 | I23: 1074000
A24: 3.78% - Senior Note | C24: 1960-06-15 | E24: 0.0378 | G24: 20000000 | I24: 756000
A25: 3.34% - Senior Note | C25: 1960-10-30 | E25: 0.0334 | G25: 25000000 | I25: 835000
A26: 4.26% - Senior Note | C26: 1932-06-15 | E26: 0.0426 | G26: 15000000 | I26: 639000
A27: 4.60% - Senior Note | C27: 1952-06-15 | E27: 0.0382 | G27: 35000000 | I27: 1337000
A28: 6.39% - Senior Note | C28: 2033-11-30 | E28: 0.0639 | G28: 100000000 | I28: 6390000
A29: Debt Amortization | I29: =191101.62+59859.36 -> 250960.98
A30: Total Long-Term Debt Capital | G30: =SUM(G11:G28) -> 475000000 | I30: =SUM(I11:I29) -> 23305960.98 | K30: =I30/G30 -> 0.04906518101

Sheet TJN-2 p 4 LTD 24
A1: CASCADE NATURAL GAS CORPORATION
A2: LONG-TERM DEBT CAPITAL
A3: PROJECTED DECEMBER 31, 2024
G7: Principal
C8: Date of | E8: Interest | G8: Amount | I8: Annual Interest
A9: Description | C9: Maturity | E9: Rate | G9: of Issue | I9: Expense
A10: Unsecured Long-Term Debt
A11: 7.48% - Medium-Term Note | C11: 2027-09-15 | E11: 0.0748 | G11: 20000000 | I11: =E11*G11 -> 1496000
A12: 7.10% - Medium-Term Note | C12: 2029-03-16 | E12: 0.071 | G12: 15000000 | I12: =E12*G12 -> 1065000
A13: 5.79% - Medium-Term Note | C13: 1937-03-08 | E13: 0.0579 | G13: 40000000 | I13: =E13*G13 -> 2316000
A14: 4.11% - Senior Note | C14: 2025-08-23 | E14: 0.0411 | G14: 25000000 | I14: 1027500
A15: 4.36% - Senior Note | C15: 2028-08-23 | E15: 0.0436 | G15: 25000000 | I15: 1090000
A16: 4.09% - Senior Note | C16: 1944-11-24 | E16: 0.0409 | G16: 12500000 | I16: 511250
A17: 4.24% - Senior Note | C17: 1954-11-24 | E17: 0.0424 | G17: 12500000 | I17: 530000
A18: 4.09% - Senior Note | C18: 1945-01-15 | E18: 0.0409 | G18: 12500000 | I18: 511250
A19: 4.24% - Senior Note | C19: 1955-01-15 | E19: 0.0424 | G19: 12500000 | I19: 530000
A20: 3.62% - Senior Note | C20: 2029-06-13 | E20: 0.0362 | G20: 25000000 | I20: 905000
A21: 3.82% - Senior Note | C21: 1934-06-13 | E21: 0.0382 | G21: 20000000 | I21: 764000
A22: 4.26% - Senior Note | C22: 1949-06-13 | E22: 0.0426 | G22: 30000000 | I22: 1278000
A23: 3.58% - Senior Note | C23: 1950-06-15 | E23: 0.0358 | G23: 30000000 | I23: 1074000
A24: 3.78% - Senior Note | C24: 1960-06-15 | E24: 0.0378 | G24: 20000000 | I24: 756000
A25: 3.34% - Senior Note | C25: 1960-10-30 | E25: 0.0334 | G25: 25000000 | I25: 835000
A26: 4.26% - Senior Note | C26: 1932-06-15 | E26: 0.0426 | G26: 15000000 | I26: 639000
A27: 4.60% - Senior Note | C27: 1952-06-15 | E27: 0.0382 | G27: 35000000 | I27: 1337000
A28: 6.39% - Senior Note | C28: 2033-11-30 | E28: 0.0639 | G28: 100000000 | I28: 6390000
A29: Debt Amortization | I29: ='TJN-2 p 3 LTD 23'!I29+(3912.98*11) -> 294003.76
A30: Total Long-Term Debt Capital | G30: =SUM(G11:G28) -> 475000000 | I30: =SUM(I11:I29) -> 23349003.76 | K30: =I30/G30 -> 0.04915579739

Sheet TJN-2 p 5 LTD 25
A1: CASCADE NATURAL GAS CORPORATION
A2: LONG-TERM DEBT CAPITAL
A3: PROJECTED DECEMBER 31, 2025
G7: Principal
C8: Date of | E8: Interest | G8: Amount | I8: Annual Interest
A9: Description | C9: Maturity | E9: Rate | G9: of Issue | I9: Expense
A10: Unsecured Long-Term Debt
A11: 7.48% - Medium-Term Note | C11: 2027-09-15 | E11: 0.0748 | G11: 20000000 | I11: =E11*G11 -> 1496000
A12: 7.10% - Medium-Term Note | C12: 2029-03-16 | E12: 0.071 | G12: 15000000 | I12: =E12*G12 -> 1065000
A13: 5.79% - Medium-Term Note | C13: 1937-03-08 | E13: 0.0579 | G13: 40000000 | I13: =E13*G13 -> 2316000
A14: 4.36% - Senior Note | C14: 2028-08-23 | E14: 0.0436 | G14: 25000000 | I14: 1090000
A15: 4.09% - Senior Note | C15: 1944-11-24 | E15: 0.0409 | G15: 12500000 | I15: 511250
A16: 4.24% - Senior Note | C16: 1954-11-24 | E16: 0.0424 | G16: 12500000 | I16: 530000
A17: 4.09% - Senior Note | C17: 1945-01-15 | E17: 0.0409 | G17: 12500000 | I17: 511250
A18: 4.24% - Senior Note | C18: 1955-01-15 | E18: 0.0424 | G18: 12500000 | I18: 530000
A19: 3.62% - Senior Note | C19: 2029-06-13 | E19: 0.0362 | G19: 25000000 | I19: 905000
A20: 3.82% - Senior Note | C20: 1934-06-13 | E20: 0.0382 | G20: 20000000 | I20: 764000
A21: 4.26% - Senior Note | C21: 1949-06-13 | E21: 0.0426 | G21: 30000000 | I21: 1278000
A22: 3.58% - Senior Note | C22: 1950-06-15 | E22: 0.0358 | G22: 30000000 | I22: 1074000
A23: 3.78% - Senior Note | C23: 1960-06-15 | E23: 0.0378 | G23: 20000000 | I23: 756000
A24: 3.34% - Senior Note | C24: 1960-10-30 | E24: 0.0334 | G24: 25000000 | I24: 835000
A25: 4.26% - Senior Note | C25: 1932-06-15 | E25: 0.0426 | G25: 15000000 | I25: 639000
A26: 4.60% - Senior Note | C26: 1952-06-15 | E26: 0.0382 | G26: 35000000 | I26: 1337000
A27: 6.39% - Senior Note | C27: 2033-11-30 | E27: 0.0639 | G27: 100000000 | I27: 6390000
A28: Debt Amortization | I28: ='TJN-2 p 4 LTD 24'!I29 -> 294003.76
A29: Total Long-Term Debt Capital | G29: =SUM(G11:G27) -> 450000000 | I29: =SUM(I11:I28) -> 22321503.76 | K29: =I29/G29 -> 0.04960334169

Sheet TJN-2 p 6 STD
A1: CASCADE NATURAL GAS CORPORATION
A2: AVERAGE SHORT-TERM DEBT
A3: TWELVE MONTHS ENDING DECEMBER 31, 2023
A4: PROJECTED 2024 - 2025
C7: Balance | E7: Annual | G7: Average
C8: Outstanding | E8: Cost | G8: Cost
A9: 2023
A10: Average Balance 1/ | C10: =(150000000/12*11)+(50000000/12)+(50500000/12) -> 145875000 | E10: =649787.57+9674009.21 -> 10323796.78 | G10: =ROUND(E10/C10,5) -> 0.07077
A11: Amortization of Fees 2/ | E11: 133472.22
A12: Total | C12: =SUM(C10:C11) -> 145875000 | E12: =SUM(E10:E11) -> 10457269 | G12: =ROUND(E12/C12,5) -> 0.07169
A14: Projected 2024
A15: Average Balance 1/ | C15: =(50000000/12)+(1105987000/12) -> 96332250 | E15: =C15*G15 -> 7586164.688 | G15: =(0.0825+0.08+0.0775+0.075)/4 -> 0.07875
A16: Amortization of Fees 2/ | E16: =E11 -> 133472.22
A17: Total | C17: =SUM(C15:C16) -> 96332250 | E17: =SUM(E15:E16) -> 7719636.907 | G17: =ROUND(E17/C17,5) -> 0.08014
A19: Projected 2025
A20: Average Balance 1/ | C20: =207227000/12 -> 17268916.67 | E20: =C20*G20 -> 1154858.802 | G20: =(0.07+0.0675+0.065+0.065)/4 -> 0.066875
A21: Amortization of Fees 2/ | E21: =E11 -> 133472.22
A22: Total | C22: =SUM(C20:C21) -> 17268916.67 | E22: =SUM(E20:E21) -> 1288331.022 | G22: =ROUND(E22/C22,5) -> 0.0746
A26: 1/ Twelve month average balance.
A27: 2/ Negotiation and commitment fees.

Sheet TJN-2 p 7 Common Equity
A1: CASCADE NATURAL GAS CORPORATION
A2: AVERAGE UTILITY COMMON EQUITY
A3: TWELVE MONTHS ENDING DECEMBER 31, 2023
A4: PROJECTED 2024 - 2025
A7: Description | C7: Amount
A8: Common Equity - 12/31/2023 | C8: 477031415.5
A10: Investment in Subsidiaries | C10: 0
A12: Utility Common Equity - 12/31/2019 | C12: =C8-C10 -> 477031415.5
A14: Common Equity - 12/31/2024 | C14: 502988000
A16: Common Equity - 12/31/2025 | C16: 521065000
